bitfinex/quotes_ETHUSD_20230701
["timestamp","ask_amount","ask_price","bid_price","bid_amount"]
[1688174641698,2.0,1928.6,1928.1,12.96597]
[1688174641896,2.68752184,1928.6,1928.2,0.48]
[1688174642131,1.038196,1928.7,1928.5,2.693]
[1688174642297,2.0,1929.0,1928.7,5.18483]
[1688174642492,2.0,1929.0,1928.4,5.18553]
[1688174642493,2.68752184,1928.9,1928.4,5.18553]
[1688174642735,10.36919,1928.8,1928.5,5.18533]
[1688174643039,2.68752184,1928.8,1928.5,12.96338]
[1688174643199,7.87211184,1928.8,1928.5,10.3707]
[1688174643399,7.82211184,1928.8,1928.5,10.3707]
[1688174643643,2.0,1928.7,1928.3,5.2839]
[1688174643823,13.05784184,1928.6,1928.3,2.5909]
[1688174644023,3.0,1928.5,1928.3,2.5909]
[1688174644345,2.68752184,1928.4,1928.3,2.5909]
[1688174644762,10.87316184,1928.4,1928.3,2.5909]
[1688174644923,12.26047802,1928.4,1928.3,2.5909]
[1688174645459,22.05537493,1928.4,1927.8,5.18711]
[1688174645610,3.0,1928.3,1927.8,15.5936]
[1688174645965,3.0,1928.3,1927.8,18.18723]
[1688174646115,3.0,1928.3,1927.8,18.45496971]
[1688174646314,10.18568,1928.4,1927.8,20.56786668]
[1688174646627,10.37262,1928.2,1927.8,7.81271]
[1688174646814,2.68752184,1928.1,1927.8,7.81271]
[1688174647014,5.18631,1928.2,1927.8,12.99997]
[1688174647360,3.0,1928.4,1927.9,2.693]
[1688174647507,4.68752184,1928.4,1928.0,10.37316]
[1688174648038,2.68752184,1928.3,1928.1,10.37271]
[1688174648244,13.05942184,1928.3,1927.9,5.18679]
[1688174648566,13.05942184,1928.3,1927.5,35.21794]
[1688174648567,2.0,1928.0,1927.5,35.21794]
[1688174648866,13.06176184,1927.9,1927.7,5.18749]
[1688174649212,7.87464184,1927.9,1927.7,5.18749]
[1688174650036,2.68752184,1927.9,1927.7,10.37501]
[1688174650235,3.97496102,1927.9,1927.6,7.8301]
[1688174650429,9.16204102,1927.9,1927.7,5.18751]
[1688174650955,2.68752184,1927.9,1927.7,5.18751]
[1688174651114,8.18685,1928.0,1927.7,10.37503]
[1688174651115,3.0,1928.0,1927.7,10.37503]
[1688174651320,3.0,1927.9,1927.7,12.96879]
[1688174651834,2.95,1927.9,1927.7,12.96879]
[1688174652553,2.95,1927.9,1927.8,0.48]
[1688174652722,7.20272691,1928.2,1927.8,10.85452]
[1688174652922,2.68752184,1928.1,1927.8,10.85452]
[1688174653146,2.68752184,1928.1,1927.8,5.66726]
[1688174653465,2.68752184,1928.1,1927.8,0.48]
[1688174653630,2.68752184,1928.1,1927.8,10.85452]
[1688174653815,2.68752184,1928.1,1927.8,5.66726]
[1688174654019,3.0,1928.0,1927.8,5.66726]
[1688174654839,3.0,1928.0,1927.8,10.85452]
[1688174655136,3.0,1928.0,1927.8,5.66726]
[1688174656031,3.0,1928.0,1927.8,13.44815]
[1688174656233,3.01643691,1928.2,1927.8,14.792965]
[1688174656434,2.68752184,1928.1,1927.8,5.66726]
[1688174656641,3.0,1928.0,1927.8,5.66726]
[1688174656952,16.06096184,1928.0,1927.6,2.6425]
[1688174657161,7.87474184,1927.9,1927.6,2.6425]
[1688174657324,13.06196184,1927.9,1927.6,7.83029]
[1688174657519,7.87474184,1927.9,1927.6,13.01808]
[1688174657725,2.68752184,1927.9,1927.6,13.01808]
[1688174657934,2.68752184,1927.9,1927.6,14.579287]
[1688174658148,2.68752184,1927.9,1927.6,13.01808]
[1688174658336,7.87454184,1927.9,1927.6,7.83029]
[1688174658537,7.87454184,1927.9,1927.6,13.01808]
[1688174658734,2.68752184,1927.9,1927.6,15.61197]
[1688174659270,3.0,1928.0,1927.7,0.48]
[1688174659446,3.0,1928.1,1927.8,5.18726]
[1688174659684,11.64559273,1928.1,1927.7,5.66738]
[1688174659847,11.64559273,1928.1,1927.6,2.6425]
[1688174659848,2.68752184,1928.0,1927.6,2.6425]
[1688174660047,2.95,1927.9,1927.6,7.83016]
[1688174660280,2.95,1927.9,1927.6,13.01795]
[1688174660459,7.18624,1928.2,1927.6,15.61184]
[1688174660659,7.18624,1928.2,1927.6,17.173024]
[1688174660660,2.68752184,1928.1,1927.6,17.173024]
[1688174660878,7.87418184,1928.1,1927.6,14.579134]
[1688174661394,13.06084184,1928.1,1927.7,0.48]
[1688174661804,13.07727875,1928.1,1927.7,0.48]
[1688174662095,3.0,1928.0,1927.7,5.66749]
[1688174662264,2.68752184,1927.9,1927.7,5.66749]
[1688174662993,3.0,1928.0,1927.7,10.85501]
[1688174663206,0.41679818,1928.3,1927.8,1.085501]
[1688174663207,3.0,1928.3,1927.8,1.085501]
[1688174663358,2.68752184,1928.3,1927.9,10.85375]
[1688174663688,2.68752184,1928.3,1927.9,13.44724]
[1688174664594,2.68752184,1928.3,1927.9,10.85384]
[1688174664595,2.68752184,1928.2,1927.9,10.85384]
[1688174664748,5.20191691,1928.5,1927.9,13.44733]
[1688174664953,5.20191691,1928.5,1928.0,1.344733]
[1688174664954,5.68752184,1928.4,1928.0,1.344733]
[1688174665183,5.68752184,1928.4,1928.0,5.18666]
[1688174665680,5.68752184,1928.4,1928.0,7.77956]
[1688174665681,10.87332184,1928.4,1928.0,7.77956]
[1688174665900,16.05912184,1928.4,1928.0,2.5929]
[1688174666088,16.05912184,1928.4,1927.8,5.18708]
[1688174666089,20.65194184,1928.4,1927.8,5.18708]
[1688174666258,20.65194184,1928.4,1927.8,12.96708]
[1688174666259,5.18631,1928.2,1927.8,12.96708]
[1688174666455,2.68752184,1928.1,1927.8,7.77998]
[1688174666657,7.87400184,1928.1,1927.8,7.78009]
[1688174666883,13.06048184,1928.1,1927.8,2.5929]
[1688174667101,15.65370184,1928.1,1927.8,2.5929]
[1688174667325,4.56537018,1928.0,1927.6,10.37519]
[1688174667607,7.82456184,1927.9,1927.7,5.1875]
[1688174667766,7.82456184,1927.9,1927.5,5.18692]
[1688174667767,13.01160184,1927.9,1927.5,2.5929]
[1688174667974,3.0,1927.8,1927.5,7.78095]
[1688174668199,2.68752184,1927.7,1927.5,12.96901]
[1688174668777,2.63752184,1927.7,1927.5,12.96901]
[1688174669523,2.63752184,1927.7,1927.4,2.59416]
[1688174669524,3.0,1927.6,1927.1,1.6916]
[1688174669693,10.37629,1927.5,1927.2,2.6428]
[1688174669870,13.06381184,1927.5,1927.2,2.6428]
[1688174670074,2.68752184,1927.4,1927.2,7.83165]
[1688174670276,2.68752184,1927.4,1927.2,13.02052]
[1688174670487,2.68752184,1927.4,1927.2,14.582028]
[1688174672113,2.68752184,1927.4,1927.2,13.02052]
[1688174673523,3.0,1927.6,1927.3,0.43]
[1688174673726,5.68752184,1927.6,1927.3,5.18845]
[1688174673893,5.68752184,1927.6,1927.3,12.97135]
[1688174674297,3.0,1927.8,1927.3,13.23908971]
[1688174674604,2.68752184,1927.8,1927.4,4.01690897]
[1688174674805,2.68752184,1927.8,1927.5,10.37602]
[1688174675695,2.68752184,1927.8,1927.5,12.97005]
[1688174677243,2.63752184,1927.8,1927.5,12.97005]
[1688174677382,1.05503491,1928.0,1927.5,12.97005]
[1688174677582,7.18598,1928.3,1927.8,12.96775]
[1688174677816,2.68752184,1928.2,1927.8,12.96775]
[1688174677986,7.87387184,1928.2,1927.8,12.96775]
[1688174678398,2.68752184,1928.2,1927.8,12.96775]
[1688174678978,2.5,1928.1,1927.8,12.96775]
[1688174679218,2.5,1928.1,1927.9,1.296775]
[1688174679388,2.68752184,1928.2,1928.0,10.37344]
[1688174680025,5.18499,1928.7,1928.0,12.9668]
[1688174680231,3.72577684,1928.6,1928.1,0.48]
[1688174680385,2.68752184,1928.6,1928.2,12.96501]
[1688174680715,7.87267184,1928.6,1928.2,12.96501]
[1688174680917,13.05782184,1928.6,1928.1,5.18635]
[1688174681088,7.87267184,1928.6,1928.1,10.37258]
[1688174681286,8.91098284,1928.6,1928.1,12.9658]
[1688174681482,10.36329651,1928.6,1928.1,12.9658]
[1688174681892,3.0,1928.5,1928.1,12.9658]
[1688174682098,2.68752184,1928.4,1928.1,12.9658]
[1688174682509,3.0,1928.5,1928.1,12.9658]
[1688174682703,2.68752184,1928.4,1928.1,12.9658]
[1688174682908,2.68752184,1928.4,1928.1,14.51769]
[1688174683797,2.68752184,1928.4,1928.1,12.9658]
[1688174684193,13.05883184,1928.4,1928.0,2.5531]
[1688174684431,3.0,1928.3,1928.0,2.5531]
[1688174684595,5.68752184,1928.3,1928.0,7.73967]
[1688174684799,2.68752184,1928.2,1928.0,5.18657]
[1688174685002,2.68752184,1928.2,1928.0,10.37329]
[1688174685337,7.87373184,1928.2,1928.0,5.18657]
[1688174685640,7.82373184,1928.2,1928.0,5.18657]
[1688174686000,3.0,1928.1,1927.8,5.18721]
[1688174686231,2.68752184,1928.0,1927.8,5.18721]
[1688174687330,3.0,1928.1,1927.8,12.9681]
[1688174687503,2.68752184,1928.1,1927.8,12.9681]
[1688174687707,5.68752184,1928.0,1927.8,5.18721]
[1688174687932,11.96168402,1928.0,1927.7,2.5909]
[1688174688199,17.14844402,1928.0,1927.7,7.77838]
[1688174688398,16.06104184,1928.0,1927.7,7.77838]
[1688174688605,10.87428184,1928.0,1927.7,12.9659]
[1688174689851,5.68752184,1928.0,1927.7,15.55966]
[1688174690414,10.87425184,1928.0,1927.7,12.9659]
[1688174690977,1.885,1928.4,1927.7,12.9659]
[1688174690978,6.22359,1928.6,1927.7,17.94466]
[1688174691170,2.68752184,1928.5,1928.0,15.56006]
[1688174691349,2.68752184,1928.5,1928.2,10.37226]
[1688174691716,2.68752184,1928.5,1928.2,12.96535]
[1688174693331,3.0,1928.7,1928.2,12.96535]
[1688174693546,5.68752184,1928.6,1928.2,12.96535]
[1688174693750,2.68752184,1928.6,1928.4,12.9641]
[1688174695769,3.0,1928.8,1928.4,12.9641]
[1688174696064,2.68752184,1928.8,1928.4,12.9641]
[1688174696642,3.0,1929.0,1928.4,12.9641]
[1688174696836,2.68752184,1928.9,1928.5,2.7581]
[1688174697050,2.68752184,1928.9,1928.6,12.96262]
[1688174698063,3.53317419,1929.0,1928.6,12.96262]
[1688174698226,6.22069603,1929.0,1928.6,12.96262]
[1688174698672,6.69401,1929.5,1928.6,12.96262]
[1688174698840,4.68752184,1929.4,1928.7,0.48]
[1688174699160,5.15627402,1929.4,1928.9,10.36854]
[1688174699333,6.19413402,1929.4,1928.9,12.96069]
[1688174699532,5.15627402,1929.4,1928.9,12.96069]
[1688174699736,15.52219402,1929.4,1928.9,7.68357]
[1688174700369,3.0,1929.3,1928.9,12.86787]
[1688174700666,2.68752184,1929.2,1928.9,15.46002]
[1688174701689,3.0,1929.3,1928.9,17.006022]
[1688174701834,3.01643691,1929.5,1928.9,17.006022]
[1688174702029,2.68752184,1929.4,1928.9,17.006022]
[1688174702226,3.0,1929.3,1928.9,17.006022]
[1688174702666,3.0,1929.3,1928.9,18.890022]
[1688174703640,3.0,1929.3,1929.0,1.544999]
[1688174703862,3.0,1929.3,1929.1,10.36752]
[1688174704369,3.0,1929.3,1929.1,12.9594]
[1688174705570,2.75,1929.3,1929.1,12.9594]
[1688174705930,0.01643691,1929.5,1929.1,12.9594]
[1688174706136,2.70395875,1929.5,1929.1,12.9594]
[1688174706457,0.54925969,1929.6,1929.1,14.25534]
[1688174706640,3.23678153,1929.6,1929.1,14.25534]
[1688174706843,2.81707205,1929.6,1929.1,14.25534]
[1688174707446,0.12955021,1929.6,1929.1,14.25534]
[1688174707640,0.12955021,1929.6,1929.2,1.719635]
[1688174707954,0.40486603,1929.9,1929.3,12.95792]
[1688174708266,2.68752184,1929.8,1929.3,15.55402]
[1688174709464,3.0,1929.7,1929.3,15.55402]
[1688174710843,2.68752184,1929.6,1929.3,7.77927]
[1688174711077,2.98752184,1929.6,1929.3,12.96249]
[1688174711594,3.0,1929.7,1929.3,15.5541]
[1688174711750,5.68752184,1929.7,1929.3,15.5541]
[1688174713582,3.0,1929.7,1929.3,15.5541]
[1688174713873,0.01643691,1929.8,1929.3,15.5541]
[1688174714182,0.01643691,1929.8,1929.5,10.36526]
[1688174714679,3.09493667,1929.9,1929.5,10.36526]
[1688174714979,6.8508344,1929.9,1929.5,10.36526]
[1688174715177,6.8508344,1929.9,1929.5,12.9566]
[1688174715479,5.78245851,1929.9,1929.5,12.9566]
[1688174715791,0.09493667,1929.9,1929.5,12.9566]
[1688174715987,0.40746226,1930.0,1929.7,12.95537]
[1688174716207,2.0,1930.3,1929.7,14.83937]
[1688174716410,2.68752184,1930.2,1929.9,10.36312]
[1688174716903,2.68752184,1930.2,1929.9,5.18156]
[1688174717107,4.29614762,1930.2,1929.7,1.884]
[1688174717283,3.0,1930.1,1929.7,5.18205]
[1688174717490,2.68752184,1930.0,1929.7,10.3642]
[1688174718115,2.68752184,1930.0,1929.7,5.18205]
[1688174718325,9.75286184,1930.0,1929.6,5.18234]
[1688174718479,0.26875218,1929.9,1929.6,10.36461]
[1688174718680,2.68752184,1929.8,1929.6,10.36461]
[1688174719387,8.18125,1930.1,1929.6,12.95582]
[1688174719388,3.0,1930.1,1929.6,12.95582]
[1688174719578,2.68752184,1930.0,1929.7,0.01644404]
[1688174719774,2.68752184,1930.0,1929.8,10.36366]
[1688174720203,0.12814383,1930.3,1929.9,0.49644232]
[1688174720429,0.12814383,1930.3,1930.0,12.95322]
[1688174721514,1.03721,1930.6,1930.0,12.95322]
[1688174721811,2.68752184,1930.5,1930.2,10.36155]
[1688174722000,3.0,1930.4,1930.2,10.36155]
[1688174722602,2.95,1930.4,1930.2,10.36155]
[1688174723701,0.85479535,1930.6,1930.2,10.36155]
[1688174723895,3.54231719,1930.6,1930.2,10.36155]
[1688174724426,3.23859619,1930.6,1930.2,12.95195]
[1688174724727,3.23859619,1930.6,1930.2,12.96838977]
[1688174725094,2.68752184,1930.5,1930.1,7.76327]
[1688174725404,7.86771184,1930.5,1930.2,5.18079]
[1688174725603,9.48654946,1930.5,1930.2,5.18079]
[1688174726221,9.48654946,1930.5,1930.1,7.76325]
[1688174726431,9.48654946,1930.5,1930.1,12.94432]
[1688174727225,9.48654946,1930.5,1930.1,15.53485]
[1688174729409,4.30635946,1930.5,1930.1,15.53485]
[1688174730123,2.68752184,1930.5,1930.1,15.53485]
[1688174730297,2.63752184,1930.5,1930.1,15.53485]
[1688174730497,8.73080435,1930.6,1930.1,15.53485]
[1688174730731,3.0,1930.5,1930.1,15.53485]
[1688174731942,0.55107435,1930.6,1930.1,15.53485]
[1688174732152,0.55107435,1930.6,1930.2,1.553485]
[1688174732304,0.13035827,1930.6,1930.3,12.9512]
[1688174734713,0.47211416,1930.8,1930.3,14.8252]
[1688174734908,0.47211416,1930.8,1930.4,1.90143806]
[1688174735109,0.47211416,1930.8,1930.5,15.53985]
[1688174735314,0.47211416,1930.8,1930.7,12.94865]
[1688174735537,0.0496751,1930.8,1930.7,12.94865]
[1688174736037,0.0496751,1930.8,1930.7,10.35892]
[1688174736632,0.0496751,1930.8,1930.7,5.17946]
[1688174736839,2.73719694,1930.8,1930.1,2.5823]
[1688174737043,10.35969,1930.6,1930.2,5.18065]
[1688174737244,5.68752184,1930.5,1930.2,10.36146]
[1688174737409,5.68752184,1930.5,1930.2,12.95186]
[1688174738044,5.63752184,1930.5,1930.2,12.95186]
[1688174738230,3.0,1930.5,1930.2,12.95186]
[1688174738398,3.0,1930.6,1930.2,14.505276]
[1688174738616,3.0496751,1930.8,1930.2,14.505276]
[1688174738817,2.73719694,1930.8,1930.4,12.95032]
[1688174739017,0.0496751,1930.8,1930.4,12.95032]
[1688174739424,0.0496751,1930.8,1930.5,0.01643721]
[1688174739724,0.0496751,1930.8,1930.6,12.94932]
[1688174739932,0.0496751,1930.8,1930.6,10.35946]
[1688174740234,0.0496751,1930.8,1930.7,12.96508551]
[1688174741349,0.0496751,1930.8,1930.7,10.37535551]
[1688174742769,0.0496751,1930.8,1930.7,5.19589551]
[1688174742970,7.91639694,1930.8,1930.5,2.5813]
[1688174743270,0.79163969,1930.7,1930.5,7.76124]
[1688174743569,2.73719694,1930.8,1930.5,12.94124]
[1688174743733,2.73719694,1930.8,1930.5,15.53124]
[1688174744662,2.73719694,1930.8,1930.5,7.76124]
[1688174744833,7.91639694,1930.8,1930.5,7.76124]
[1688174745441,7.91639694,1930.8,1930.5,12.94124]
[1688174745671,4.18503263,1930.8,1930.5,12.94124]
[1688174746389,16.54343263,1930.8,1930.1,31.7635]
[1688174746552,16.54343263,1930.8,1930.2,7.8733]
[1688174746553,4.885,1930.7,1930.2,7.8733]
[1688174746753,7.57252184,1930.7,1930.2,15.64451]
[1688174746983,12.75208184,1930.7,1930.2,15.64451]
[1688174747185,14.89499359,1930.7,1930.2,15.64451]
[1688174747348,13.00999359,1930.7,1930.2,15.64451]
[1688174747556,3.0,1930.7,1930.2,15.64451]
[1688174747753,5.68752184,1930.7,1930.2,15.64451]
[1688174748160,10.86698184,1930.7,1930.2,15.64451]
[1688174748697,2.68752184,1930.6,1929.8,1.782]
[1688174748865,2.68752184,1930.6,1929.8,7.77717]
[1688174748866,12.95091,1930.4,1929.8,7.77717]
[1688174749070,12.95091,1930.4,1929.8,12.95905]
[1688174749071,2.68752184,1930.3,1929.8,12.95905]
[1688174749253,3.0,1930.2,1929.8,15.54999]
[1688174750355,2.68752184,1930.1,1929.8,2.5954]
[1688174750556,3.0,1930.0,1929.2,34.90943]
[1688174750893,3.0,1930.0,1929.6,2.5765]
[1688174750894,5.68752184,1930.0,1929.6,2.5765]
[1688174751088,5.68752184,1930.0,1929.6,7.75875]
[1688174751277,5.68752184,1930.0,1929.6,12.94117]
[1688174751478,5.68752184,1930.0,1929.6,15.53238]
[1688174751868,5.68752184,1930.0,1929.6,17.344746]
[1688174752374,5.68752184,1930.0,1929.6,15.53238]
[1688174753065,5.63752184,1930.0,1929.6,15.53238]
[1688174753456,2.95,1930.0,1929.6,15.53238]
[1688174753673,13.277175,1930.2,1929.6,15.53238]
[1688174753875,2.68752184,1930.1,1929.6,15.53238]
[1688174754109,11.399175,1930.2,1929.6,17.344746]
[1688174754110,1.037265,1930.2,1929.6,17.344746]
[1688174754310,2.68752184,1930.2,1929.6,17.61248571]
[1688174754519,7.44888218,1930.5,1929.7,0.26773971]
[1688174754691,8.90512384,1930.4,1929.9,10.363]
[1688174754903,5.36022444,1930.4,1929.9,10.363]
[1688174755202,3.0,1930.3,1929.9,10.37944232]
[1688174755406,5.68752184,1930.3,1929.9,10.37944232]
[1688174755796,10.86808184,1930.3,1929.9,10.37944232]
[1688174756007,10.86808184,1930.3,1929.6,6.980076]
[1688174756008,2.68752184,1930.2,1929.6,2.5765]
[1688174756289,10.36258,1930.1,1929.7,10.36386]
[1688174757090,5.18129,1930.1,1929.7,10.36386]
[1688174759006,7.86847184,1930.2,1929.7,10.36386]
[1688174759422,3.0,1930.1,1929.7,10.36386]
[1688174759623,3.0,1930.1,1929.7,11.917016]
[1688174760020,3.0,1930.1,1929.7,14.508086]
[1688174760844,10.86860184,1930.1,1929.7,6.735056]
[1688174761007,2.63752184,1930.0,1929.7,5.1819]
[1688174761802,2.63752184,1930.0,1929.7,10.36405]
[1688174762043,2.63752184,1930.0,1929.7,5.1819]
[1688174762343,13.00021184,1930.0,1929.6,2.5765]
[1688174762506,2.63752184,1930.0,1929.7,5.18211]
[1688174763199,2.63752184,1930.0,1929.7,10.36426]
[1688174765325,3.0,1930.1,1929.7,14.26585004]
[1688174765801,8.58822179,1930.3,1929.7,14.26585004]
[1688174765997,10.86816184,1930.3,1929.7,14.26585004]
[1688174768205,5.68752184,1930.3,1929.7,14.26585004]
[1688174768538,3.0,1930.3,1930.0,1.884]
[1688174768749,7.17929,1930.8,1930.1,12.95267]
[1688174768961,3.9958,1931.0,1930.1,12.95267]
[1688174768962,2.68752184,1930.7,1930.1,15.43817]
[1688174769237,2.63752184,1930.7,1930.1,15.43817]
[1688174769435,7.81700184,1930.7,1930.1,15.43817]
[1688174769630,7.81700184,1930.7,1930.2,1.13882297]
[1688174769830,7.81700184,1930.7,1930.3,5.1804]
[1688174770129,3.0,1930.6,1930.3,12.95121]
[1688174771245,10.86733184,1930.6,1930.1,2.4855]
[1688174771410,16.04714184,1930.6,1930.1,2.4855]
[1688174771606,18.09933102,1930.6,1930.1,2.4855]
[1688174771811,18.09933102,1930.6,1930.1,7.66657]
[1688174772121,18.09933102,1930.6,1929.9,10.36293]
[1688174772122,2.68752184,1930.5,1929.9,10.36293]
[1688174772328,2.68752184,1930.5,1929.7,2.7006]
[1688174772329,19.834,1930.4,1929.7,2.7006]
[1688174772540,4.67092184,1930.3,1929.7,5.18213]
[1688174772875,15.95253,1930.2,1929.7,5.18213]
[1688174773023,2.68752184,1930.1,1929.7,5.18213]
[1688174773220,5.1814,1930.0,1929.7,10.36428]
[1688174773548,2.68752184,1930.0,1929.7,10.36428]
[1688174773862,7.86889184,1930.0,1929.7,5.18213]
[1688174774153,2.68752184,1930.0,1929.7,10.36428]
[1688174774365,3.0,1930.2,1929.8,0.01644317]
[1688174774528,10.36074,1930.4,1929.9,12.9535]
[1688174774727,10.86806184,1930.3,1929.9,15.5249]
[1688174774922,17.65343502,1930.3,1929.9,2.5714]
[1688174775118,20.24370502,1930.3,1929.8,5.19816317]
[1688174775438,22.11570502,1930.3,1929.8,5.19816317]
[1688174776843,22.11570502,1930.3,1929.8,10.38004317]
[1688174778341,17.65343502,1930.3,1929.8,10.38004317]
[1688174779232,20.24370502,1930.3,1929.8,10.38004317]
[1688174780333,12.47289502,1930.3,1929.8,10.38004317]
[1688174783169,10.86806184,1930.3,1929.8,11.93429249]
[1688174783333,3.0,1930.3,1929.8,14.52523249]
[1688174783537,0.41937815,1930.4,1929.8,14.52523249]
[1688174784049,13.35974,1930.6,1929.9,0.48]
[1688174784257,2.68752184,1930.5,1929.8,1.57069249]
[1688174784470,10.3611,1930.3,1929.9,5.18152]
[1688174784667,2.68752184,1930.2,1929.9,5.18152]
[1688174784886,2.68752184,1930.2,1929.9,10.36313]
[1688174787236,7.86838184,1930.2,1929.9,10.36313]
[1688174787658,2.68752184,1930.2,1929.9,10.36313]
[1688174789754,2.68752184,1930.2,1929.8,0.01644317]
[1688174789755,16.42639902,1930.2,1929.8,0.01644317]
[1688174789953,8.18126,1930.1,1929.7,7.75339]
[1688174790154,2.68752184,1930.0,1929.8,5.18177]
[1688174790459,2.68752184,1930.0,1929.8,10.36365]
[1688174790794,3.0,1930.1,1929.8,12.95459]
[1688174791083,5.1806,1930.3,1929.8,14.766296]
[1688174791249,5.68752184,1930.2,1929.8,14.766296]
[1688174792808,5.68752184,1930.2,1929.8,5.18177]
[1688174792809,10.86842184,1930.2,1929.8,5.18177]
[1688174792998,18.63972184,1930.2,1929.8,5.18177]
[1688174794464,5.18161,1929.9,1929.7,2.5714]
[1688174794651,5.18161,1929.9,1929.7,7.75338]
[1688174794652,7.86913184,1929.9,1929.7,7.75338]
[1688174794859,7.86913184,1929.9,1929.7,12.93553]
[1688174796264,2.68752184,1929.9,1929.7,12.93553]
[1688174799934,2.68752184,1929.9,1929.7,7.75338]
[1688174800426,13.83844906,1929.9,1929.5,5.18253]
[1688174800722,13.83844906,1929.9,1929.5,10.36502]
[1688174801624,2.68752184,1929.8,1929.4,9.53046]
[1688174801809,2.68752184,1929.8,1929.5,5.18265]
[1688174801810,5.68752184,1929.8,1929.5,5.18265]
[1688174802017,10.86947184,1929.8,1929.5,5.18265]
[1688174802189,10.86947184,1929.8,1929.5,10.36533]
[1688174802190,5.68752184,1929.8,1929.5,10.36533]
[1688174802708,5.68752184,1929.8,1929.5,5.18265]
[1688174802909,10.86943184,1929.8,1929.5,5.18265]
[1688174803823,17.65641602,1929.8,1929.4,2.6656]
[1688174804130,20.24735602,1929.8,1929.4,2.6656]
[1688174804709,20.24735602,1929.8,1929.2,6.86718]
[1688174804909,20.24735602,1929.8,1929.2,4.3418]
[1688174805305,20.24735602,1929.8,1929.2,9.52522]
[1688174805635,20.24735602,1929.8,1929.2,4.3418]
[1688174805939,20.24735602,1929.8,1929.2,9.52529]
[1688174806103,20.24735602,1929.8,1929.2,16.48207889]
[1688174809654,20.24735602,1929.8,1929.2,2.658]
[1688174809948,20.24735602,1929.8,1929.2,13.02491]
[1688174813512,17.65638602,1929.8,1929.2,15.61665]
[1688174813948,16.05128184,1929.8,1929.2,15.61665]
[1688174814155,18.64222184,1929.8,1929.2,15.61665]
[1688174814526,18.64222184,1929.8,1929.2,7.84142]
[1688174815263,18.64222184,1929.8,1929.2,13.02491]
[1688174816679,18.64222184,1929.8,1929.2,7.84142]
[1688174816858,10.36507,1929.6,1929.2,7.84142]
[1688174817047,2.68752184,1929.5,1929.2,7.84142]
[1688174817237,2.68752184,1929.5,1929.2,13.02491]
[1688174817641,7.87022184,1929.5,1929.2,7.84142]
[1688174818144,7.87022184,1929.5,1929.2,2.658]
[1688174818145,13.05292184,1929.5,1929.2,2.658]
[1688174818345,13.05292184,1929.5,1929.2,7.84149]
[1688174818346,7.87022184,1929.5,1929.2,7.84149]
[1688174818856,2.68752184,1929.5,1929.2,7.84149]
[1688174819260,3.0,1929.6,1929.2,8.62728392]
[1688174819573,0.42098796,1929.9,1929.5,12.95644]
[1688174819748,10.36189,1930.2,1929.5,12.95644]
[1688174819749,5.18094,1930.2,1929.5,12.95644]
[1688174819942,5.18094,1930.2,1929.6,2.751]
[1688174819943,2.68752184,1930.1,1929.6,2.751]
[1688174820143,13.04975184,1930.1,1929.7,5.18201]
[1688174820376,13.04975184,1930.1,1929.7,6.52701]
[1688174820550,5.59073331,1930.2,1929.9,1.341]
[1688174820751,0.40984331,1930.2,1930.0,14.29435]
[1688174820955,1.037281,1930.4,1930.0,12.95335]
[1688174821159,7.86788184,1930.4,1930.0,12.95335]
[1688174822796,3.11258319,1930.4,1930.0,12.95335]
[1688174823091,3.11258319,1930.4,1930.1,1.341]
[1688174823290,3.11258319,1930.4,1930.2,10.36162]
[1688174826059,0.42506135,1930.4,1930.2,10.36162]
[1688174826391,3.0,1930.5,1930.2,10.36162]
[1688174826567,5.68752184,1930.5,1930.2,10.36162]
[1688174826889,6.09545966,1930.5,1930.2,10.36162]
[1688174827792,0.40793782,1930.5,1930.3,1.345]
[1688174827993,5.17906,1930.9,1930.4,10.36054]
[1688174827994,8.17922,1930.8,1930.4,10.36054]
[1688174828162,10.86674184,1930.8,1930.4,10.36054]
[1688174828563,5.68752184,1930.8,1930.4,10.36054]
[1688174828923,10.86672184,1930.8,1930.4,10.36054]
[1688174829600,5.68752184,1930.8,1930.4,11.46766048]
[1688174829827,5.68752184,1930.8,1930.4,15.39179048]
[1688174830123,3.0,1930.8,1930.5,1.35743721]
[1688174830325,0.40879453,1930.9,1930.6,12.94932]
[1688174830503,3.09631637,1930.9,1930.6,14.24589572]
[1688174830699,3.0,1930.8,1930.6,14.24589572]
[1688174831816,0.408795,1930.9,1930.6,14.24589572]
[1688174832599,3.12924436,1931.1,1930.6,14.24589572]
[1688174832796,8.30764436,1931.1,1930.6,14.24589572]
[1688174833021,8.30764436,1931.1,1930.7,1.42458957]
[1688174833221,8.30764436,1931.1,1930.8,10.35828]
[1688174833627,3.12924436,1931.1,1930.8,10.35828]
[1688174833912,0.12924436,1931.1,1930.8,10.35828]
[1688174834109,0.12924436,1931.1,1930.8,14.81388]
[1688174834437,0.12924436,1931.1,1930.9,3.343388]
[1688174834730,0.12924436,1931.1,1931.0,10.35732]
[1688174836205,0.12924436,1931.1,1931.0,12.94665]
[1688174839054,3.0,1931.4,1931.0,12.94665]
[1688174839252,2.68752184,1931.4,1931.0,12.94665]
[1688174839463,3.0,1931.3,1931.0,14.33903792]
[1688174840725,0.12947197,1931.4,1931.0,14.33903792]
[1688174841645,0.12947197,1931.4,1931.0,11.74970792]
[1688174841848,2.68752184,1931.3,1930.9,13.11515]
[1688174842057,2.68752184,1931.3,1931.0,5.17864]
[1688174842058,7.86560184,1931.3,1931.0,5.17864]
[1688174842739,2.68752184,1931.3,1931.0,5.17864]
[1688174842942,2.68752184,1931.3,1931.0,10.3573]
[1688174843338,3.12947197,1931.4,1931.0,12.94663]
[1688174843558,3.0,1931.3,1931.1,1.294663]
[1688174843862,0.12947197,1931.4,1931.2,5.17812]
[1688174844066,0.12947197,1931.4,1931.2,10.35624]
[1688174844568,0.12947197,1931.4,1931.2,12.9453]
[1688174845566,0.12947197,1931.4,1931.2,10.35624]
[1688174845767,0.12947197,1931.4,1931.3,1.05205441]